bitfinex/quotes_SOLUSD_20240613
["timestamp","ask_amount","ask_price","bid_price","bid_amount"]
[1718319641841,0.51,147.81,147.77,0.8388806]
[1718319642035,0.34,147.81,147.77,0.8388806]
[1718319642339,0.34,147.81,147.77,0.3388806]
[1718319642524,0.17,147.81,147.77,0.3388806]
[1718319644618,23.06,147.86,147.77,0.3388806]
[1718319644819,65.68,147.85,147.77,0.3388806]
[1718319645244,65.0,147.85,147.77,2.8426806]
[1718319646031,65.0,147.85,147.77,0.3388806]
[1718319646437,0.68,147.84,147.77,0.3388806]
[1718319647742,0.68,147.84,147.77,2.8426806]
[1718319648154,0.68,147.84,147.77,0.3388806]
[1718319649054,100.68,147.84,147.77,0.3388806]
[1718319649555,0.17,147.82,147.77,0.3388806]
[1718319649926,0.51,147.82,147.77,0.3388806]
[1718319652031,100.51,147.82,147.77,0.3388806]
[1718319652341,0.17,147.8,147.77,0.3388806]
[1718319657939,0.17,147.81,147.77,0.3388806]
[1718319658249,0.34,147.81,147.77,0.3388806]
[1718319658553,0.17,147.82,147.77,0.3388806]
[1718319658764,20.0,147.85,147.77,0.3388806]
[1718319659146,21.2301,147.87,147.77,2.8426806]
[1718319660145,0.17,147.83,147.77,0.3388806]
[1718319660345,45.17,147.83,147.77,0.3388806]
[1718319660556,0.17,147.81,147.77,0.3388806]
[1718319660872,45.17,147.81,147.77,0.3388806]
[1718319661044,0.34,147.8,147.77,0.3388806]
[1718319661246,0.34,147.79,147.77,0.3388806]
[1718319661782,0.34,147.78,147.77,0.3388806]
[1718319662084,0.51,147.78,147.77,0.3388806]
[1718319662254,0.34,147.78,147.77,0.3388806]
[1718319662580,0.17,147.78,147.77,0.3388806]
[1718319662752,20.17,147.8,147.77,0.3388806]
[1718319663078,0.17,147.8,147.77,0.3388806]
[1718319663242,0.17,147.79,147.77,0.3388806]
[1718319663767,0.34,147.79,147.77,0.3388806]
[1718319668069,200.0,147.84,147.77,0.3388806]
[1718319668280,200.0,147.86,147.77,0.3388806]
[1718319668775,200.0,147.84,147.77,0.3388806]
[1718319669271,20.0,147.83,147.77,0.3388806]
[1718319669470,45.68,147.82,147.77,0.3388806]
[1718319669677,20.0,147.83,147.77,0.3388806]
[1718319670272,20.0,147.85,147.77,0.3388806]
[1718319670966,45.34,147.84,147.77,0.3388806]
[1718319671162,20.34,147.83,147.77,0.3388806]
[1718319671476,45.34,147.82,147.77,0.3388806]
[1718319671979,0.17,147.81,147.77,0.3388806]
[1718319672353,0.34,147.81,147.77,0.3388806]
[1718319672556,0.17,147.81,147.77,0.3388806]
[1718319672768,0.34,147.81,147.77,0.3388806]
[1718319673077,0.17,147.79,147.77,0.3388806]
[1718319676366,0.17,147.81,147.77,0.3388806]
[1718319676679,0.17,147.8,147.77,0.3388806]
[1718319677080,0.17,147.8,147.77,8.0288806]
[1718319678173,0.17,147.8,147.78,7.69]
[1718319678370,0.17,147.8,147.77,0.3388806]
[1718319678567,0.17,147.8,147.78,7.69]
[1718319678776,0.17,147.8,147.77,0.3388806]
[1718319678975,0.17,147.8,147.77,8.0288806]
[1718319679402,0.17,147.8,147.77,0.3388806]
[1718319679697,0.17,147.8,147.77,8.0288806]
[1718319683579,0.17,147.8,147.77,0.3388806]
[1718319683780,0.34,147.8,147.77,0.3388806]
[1718319683988,0.34,147.8,147.77,8.0288806]
[1718319684300,45.34,147.8,147.77,0.3388806]
[1718319684674,0.17,147.8,147.77,8.0288806]
[1718319685105,2.707204,147.84,147.77,15.5352806]
[1718319685427,7.69,147.86,147.8,7.69]
[1718319685603,121.2301,147.87,147.8,7.69]
[1718319685817,7.69,147.86,147.8,7.69]
[1718319686110,8.02333333,147.86,147.78,6.6555]
[1718319686407,7.69,147.85,147.8,7.69]
[1718319687581,45.68,147.84,147.79,7.69]
[1718319687780,53.37,147.84,147.79,7.69]
[1718319688119,7.69,147.83,147.78,6.6555]
[1718319688294,0.17,147.82,147.78,14.3455]
[1718319688610,0.51,147.83,147.78,14.3455]
[1718319689183,0.51,147.83,147.79,7.69]
[1718319691992,0.17,147.83,147.79,7.69]
[1718319692711,0.17,147.83,147.8,7.69]
[1718319693282,0.17,147.83,147.78,6.6555]
[1718319693500,100.0,147.82,147.77,0.3388806]
[1718319693808,7.86,147.8,147.77,0.3388806]
[1718319694522,45.0,147.79,147.77,0.3388806]
[1718319694724,108.03,147.78,147.77,0.3388806]
[1718319695027,173.2,147.78,147.77,0.3388806]
[1718319695211,173.37,147.78,147.77,0.3388806]
[1718319697000,73.37,147.78,147.77,0.3388806]
[1718319706022,173.37,147.78,147.77,0.3388806]
[1718319706223,181.06,147.78,147.77,0.3388806]
[1718319706539,0.17,147.74,147.69,15.0755]
[1718319706735,7.69,147.73,147.69,15.0755]
[1718319707331,0.51,147.74,147.69,15.0755]
[1718319707634,8.03,147.73,147.69,15.0755]
[1718319707801,0.34,147.73,147.69,15.0755]
[1718319708204,0.17,147.72,147.69,15.0755]
[1718319708431,0.34,147.73,147.69,15.0755]
[1718319708938,8.03,147.73,147.69,15.0755]
[1718319709503,0.17,147.72,147.69,15.0755]
[1718319709703,0.17,147.72,147.66,6.1792]
[1718319709704,7.86,147.72,147.67,7.69]
[1718319710713,7.69,147.71,147.66,13.8692]
[1718319712916,0.17,147.7,147.65,23.8848]
[1718319713119,8.2,147.7,147.65,23.8848]
[1718319713841,8.2,147.7,147.65,16.1948]
[1718319714023,8.2,147.7,147.65,23.8848]
[1718319714205,8.2,147.7,147.62,6.8439806]
[1718319714514,7.69,147.66,147.62,0.8388806]
[1718319715423,165.17,147.69,147.62,0.8388806]
[1718319715424,0.17,147.65,147.62,0.8388806]
[1718319715722,7.86,147.65,147.62,0.8388806]
[1718319717121,7.86,147.64,147.62,0.8388806]
[1718319717351,45.51,147.63,147.62,0.8388806]
[1718319717839,45.68,147.63,147.62,0.8388806]
[1718319718421,0.34,147.63,147.62,0.8388806]
[1718319718615,0.17,147.63,147.62,0.8388806]
[1718319719843,45.17,147.64,147.62,0.8388806]
[1718319720043,116.6523,147.69,147.62,0.8388806]
[1718319720044,7.69,147.67,147.62,0.8388806]
[1718319720250,20.0,147.66,147.62,8.5288806]
[1718319721139,27.69,147.66,147.62,0.8388806]
[1718319721343,7.69,147.65,147.62,0.8388806]
[1718319721538,20.0,147.66,147.62,0.8388806]
[1718319721539,0.17,147.63,147.62,0.8388806]
[1718319726359,20.34,147.63,147.62,0.8388806]
[1718319726526,65.68,147.63,147.62,0.8388806]
[1718319728459,0.17,147.67,147.62,0.8388806]
[1718319728631,45.0,147.66,147.62,0.8388806]
[1718319728829,0.34,147.65,147.62,0.8388806]
[1718319729027,20.34,147.65,147.62,0.8388806]
[1718319729957,0.34,147.65,147.62,0.8388806]
[1718319730262,0.17,147.65,147.62,0.8388806]
[1718319730969,109.85874767,147.71,147.62,0.8388806]
[1718319731266,10.29115151,147.72,147.62,0.8388806]
[1718319731474,20.0,147.71,147.62,0.8388806]
[1718319731835,220.0,147.71,147.62,0.8388806]
[1718319732160,100.0,147.69,147.62,0.8388806]
[1718319732337,20.0,147.68,147.62,0.8388806]
[1718319732964,0.34,147.67,147.62,0.8388806]
[1718319733161,0.34,147.66,147.62,0.8388806]
[1718319733372,0.17,147.65,147.62,0.8388806]
[1718319733671,0.34,147.66,147.62,0.8388806]
[1718319733863,20.17,147.66,147.62,0.8388806]
[1718319734065,20.0,147.66,147.62,0.8388806]
[1718319734441,20.0,147.7,147.62,0.8388806]
[1718319735566,0.34,147.69,147.62,17.4673806]
[1718319735772,0.34,147.68,147.62,17.4673806]
[1718319736142,20.34,147.68,147.62,17.4673806]
[1718319739578,0.17,147.66,147.62,17.4673806]
[1718319740171,0.34,147.66,147.62,0.8388806]
[1718319740553,0.34,147.65,147.62,0.8388806]
[1718319740747,0.17,147.64,147.62,0.8388806]
[1718319740948,20.34,147.64,147.62,0.8388806]
[1718319741147,23.14,147.68,147.62,0.8388806]
[1718319741349,100.0,147.72,147.62,17.4851806]
[1718319741646,20.0,147.71,147.62,17.4851806]
[1718319742583,0.17,147.69,147.62,17.4851806]
[1718319742878,0.17,147.69,147.64,7.71]
[1718319742879,20.34,147.69,147.64,7.71]
[1718319743049,0.17,147.67,147.64,7.71]
[1718319743543,0.34,147.67,147.64,7.71]
[1718319744849,0.34,147.67,147.62,17.4851806]
[1718319749164,78.05545828,149.05,147.62,17.4851806]
[1718319749165,222.1208,147.74,147.63,6.3446]
[1718319750268,100.0,147.72,147.63,6.3446]
[1718319750468,45.34,147.71,147.63,6.3446]
[1718319750678,0.34,147.7,147.63,6.3446]
[1718319750861,0.17,147.69,147.63,6.3446]
[1718319751061,0.34,147.69,147.63,6.3446]
[1718319751473,0.17,147.68,147.63,6.3446]
[1718319753377,0.17,147.68,147.63,8.8508]
[1718319753557,0.34,147.69,147.63,8.8508]
[1718319755074,0.34,147.69,147.64,2.506]
[1718319760407,0.34,147.69,147.63,6.3446]
[1718319760408,0.34,147.69,147.63,8.8508]
[1718319761193,115.4782,147.74,147.64,2.506]
[1718319761373,20.0,147.73,147.64,2.506]
[1718319762392,45.68,147.72,147.64,2.506]
[1718319762590,0.17,147.7,147.64,2.506]
[1718319763096,0.68,147.7,147.64,2.506]
[1718319763274,45.68,147.7,147.63,8.8507]
[1718319765094,45.68,147.7,147.66,7.71]
[1718319768278,45.68,147.7,147.63,6.3446]
[1718319768480,100.0,147.67,147.62,17.4851806]
[1718319768705,45.17,147.66,147.62,0.8388806]
[1718319768881,0.51,147.65,147.62,0.8388806]
[1718319769081,0.17,147.64,147.62,0.8388806]
[1718319769481,0.17,147.64,147.62,8.5488806]
[1718319770784,0.17,147.64,147.62,0.8388806]
[1718319770991,0.17,147.64,147.62,8.5488806]
[1718319771290,0.51,147.65,147.63,7.71]
[1718319771489,0.51,147.65,147.64,7.71]
[1718319771490,0.17,147.65,147.64,7.71]
[1718319771898,0.17,147.65,147.63,7.71]
[1718319772093,0.51,147.65,147.62,0.8388806]
[1718319772287,0.51,147.65,147.62,8.5488806]
[1718319773511,0.51,147.65,147.62,0.8388806]
[1718319773678,0.51,147.65,147.62,8.5488806]
[1718319773876,0.51,147.65,147.62,0.8388806]
[1718319773877,107.88,147.63,147.62,0.8388806]
[1718319774094,100.0,147.61,147.54,7.71]
[1718319774292,45.34,147.6,147.52,16.0365]
[1718319774480,108.05,147.59,147.52,16.0365]
[1718319774677,45.17,147.58,147.53,7.71]
[1718319774910,0.17,147.57,147.54,7.71]
[1718319775090,0.34,147.57,147.54,7.71]
[1718319775289,0.17,147.56,147.51,1.0]
[1718319775519,0.17,147.54,147.51,1.0]
[1718319775717,7.88,147.54,147.51,1.0]
[1718319775915,45.0,147.53,147.51,1.0]
[1718319776230,0.17,147.55,147.51,1.0]
[1718319776514,45.51,147.55,147.52,7.71]
[1718319776713,16.1244,147.6,147.51,1.0]
[1718319776915,45.68,147.59,147.55,7.71]
[1718319777507,45.68,147.59,147.54,7.71]
[1718319777697,0.17,147.57,147.51,1.0]
[1718319777899,53.05,147.57,147.52,7.71]
[1718319778197,100.17,147.55,147.51,1.0]
[1718319778400,0.17,147.53,147.51,1.0]
[1718319778609,0.51,147.53,147.51,1.0]
[1718319779117,0.17,147.52,147.51,1.0]
[1718319779484,45.34,147.52,147.51,1.0]
[1718319779887,45.51,147.52,147.51,1.0]
[1718319780296,0.17,147.52,147.51,1.0]
[1718319780491,0.17,147.52,147.51,8.71]
[1718319780895,0.17,147.52,147.51,1.0]
[1718319781521,0.34,147.52,147.51,1.0]
[1718319781699,0.68,147.52,147.51,1.0]
[1718319781900,45.68,147.52,147.51,1.0]
[1718319782595,45.51,147.52,147.51,1.0]
[1718319783121,65.68,147.52,147.51,1.0]
[1718319783315,88.85,147.52,147.51,1.0]
[1718319783524,100.17,147.48,147.47,0.8388806]
[1718319783892,0.34,147.48,147.47,0.8388806]
[1718319784099,0.17,147.48,147.47,0.8388806]
[1718319785002,100.17,147.48,147.47,0.8388806]
[1718319785333,145.17,147.48,147.47,0.8388806]
[1718319785622,145.51,147.48,147.47,0.8388806]
[1718319786902,16.0948,147.54,147.47,0.8388806]
[1718319787104,122.8278,147.58,147.47,0.8388806]
[1718319787321,122.8278,147.58,147.47,3.3477806]
[1718319787626,200.0,147.57,147.47,0.8388806]
[1718319788934,100.0,147.59,147.48,2.5087]
[1718319789401,100.0,147.58,147.47,0.8388806]
[1718319789923,100.0,147.55,147.47,0.8388806]
[1718319790110,0.17,147.54,147.47,0.8388806]
[1718319790310,0.34,147.54,147.47,0.8388806]
[1718319790496,0.31443161,147.54,147.47,0.8388806]
[1718319790926,0.31443161,147.54,147.47,3.3477806]
[1718319791516,0.31443161,147.54,147.47,0.8388806]
[1718319791729,100.17,147.53,147.47,0.8388806]
[1718319792027,100.0,147.51,147.47,0.8388806]
[1718319792319,100.0,147.49,147.47,0.8388806]
[1718319792524,45.34,147.48,147.47,0.8388806]
[1718319792822,45.51,147.48,147.47,0.8388806]
[1718319793128,45.68,147.48,147.47,0.8388806]
[1718319793317,65.68,147.48,147.47,0.8388806]
[1718319793716,0.17,147.52,147.47,0.8388806]
[1718319793926,200.0,147.51,147.47,0.8388806]
[1718319794217,65.51,147.5,147.47,0.8388806]
[1718319794437,0.17,147.49,147.47,0.8388806]
[1718319797019,100.0,147.53,147.47,0.8388806]
[1718319797202,206.5404,147.55,147.47,0.8388806]
[1718319797400,16.5311,147.56,147.47,0.8388806]
[1718319797703,106.3438,147.59,147.48,8.6015]
[1718319798007,106.3438,147.59,147.48,6.0928]
[1718319798199,100.0,147.59,147.48,6.0928]
[1718319798398,100.0,147.59,147.49,15.452]
[1718319798629,100.0,147.58,147.49,15.452]
[1718319798941,0.34,147.57,147.49,15.452]
[1718319799223,0.17,147.56,147.49,15.452]
[1718319799614,100.0,147.55,147.49,15.452]
[1718319799807,0.17,147.52,147.47,0.8388806]
[1718319800006,45.51,147.52,147.47,0.8388806]
[1718319800205,45.68,147.52,147.47,0.8388806]
[1718319801013,0.51,147.52,147.47,0.8388806]
[1718319801320,20.0,147.54,147.47,0.8388806]
[1718319801525,45.51,147.53,147.47,0.8388806]
[1718319802217,0.17,147.51,147.47,0.8388806]
[1718319802424,45.34,147.51,147.47,0.8388806]
[1718319802736,0.33333333,147.5,147.47,0.8388806]
[1718319809316,0.33333333,147.5,147.46,16.6456]
[1718319809317,0.33333333,147.5,147.46,14.9844806]
[1718319810410,0.33333333,147.5,147.46,17.4934806]
[1718319811148,0.33333333,147.5,147.49,2.5086]
[1718319811635,0.33333333,147.5,147.48,2.5087]
[1718319812209,0.33333333,147.5,147.49,2.5086]
[1718319813949,0.33333333,147.5,147.47,23.17]
[1718319815636,0.33333333,147.5,147.49,2.5086]
[1718319816839,0.33333333,147.5,147.49,7.5258]
[1718319817643,0.33333333,147.5,147.49,2.5086]
[1718319821347,0.33333333,147.5,147.49,7.5258]
[1718319825074,0.33333333,147.5,147.49,2.5086]
[1718319825972,0.33333333,147.5,147.47,25.6788]
[1718319826270,0.33333333,147.5,147.47,2.5088]
[1718319826452,0.33333333,147.5,147.48,2.5087]
[1718319826654,0.33333333,147.5,147.49,2.5086]
[1718319826854,0.33333333,147.5,147.48,2.5087]
[1718319827666,0.33333333,147.5,147.49,2.5086]
[1718319828058,0.33333333,147.5,147.48,2.5087]
[1718319829485,0.33333333,147.5,147.49,2.5086]
[1718319831383,0.33333333,147.5,147.48,2.5087]
[1718319832282,0.33333333,147.5,147.49,2.5086]
[1718319833777,0.33333333,147.5,147.49,7.5258]
[1718319835467,0.33333333,147.5,147.49,2.5086]
[1718319840882,0.33333333,147.5,147.49,41.1086]
[1718319842489,0.33333333,147.5,147.49,91.1258]
[1718319842691,0.33333333,147.5,147.49,111.2958]
[1718319843790,0.33333333,147.5,147.49,66.2958]
[1718319844085,0.33333333,147.5,147.49,66.1258]
[1718319844381,0.33333333,147.5,147.49,7.72]
[1718319845180,0.33333333,147.5,147.49,10.2286]
[1718319846463,0.33333333,147.5,147.49,22.9658]
[1718319848980,0.33333333,147.5,147.49,7.5258]
[1718319849589,0.33333333,147.5,147.49,2.5086]
[1718319850594,0.33333333,147.5,147.48,25.6687]
[1718319850785,0.33333333,147.5,147.48,2.5087]
[1718319851860,0.33333333,147.5,147.46,2.509]
[1718319852067,0.33333333,147.5,147.47,2.5089]
[1718319854011,0.33333333,147.5,147.46,2.509]
[1718319854490,0.33333333,147.5,147.44,2.5094]
[1718319855286,0.33333333,147.5,147.45,2.5093]
[1718319856198,0.33333333,147.5,147.44,2.5094]
[1718319856402,0.33333333,147.5,147.4,6.2149]
[1718319856403,16.0463,147.49,147.4,6.2149]
[1718319856590,16.2163,147.49,147.41,2.5099]
[1718319857171,6.4998,147.48,147.4,2.51]
[1718319857376,6.4998,147.48,147.41,2.5099]
[1718319857987,6.4998,147.48,147.36,6.3724]
[1718319858194,100.0,147.47,147.36,29.5324]
[1718319858370,45.34,147.46,147.38,2.5105]
[1718319858886,45.34,147.46,147.37,2.5106]
[1718319859075,45.34,147.46,147.36,23.16]
[1718319859274,0.17,147.45,147.36,23.16]
[1718319859578,45.34,147.46,147.35,23.16]
[1718319859777,45.34,147.46,147.39,2.5102]
[1718319860816,45.34,147.46,147.38,2.5104]
[1718319861401,45.34,147.46,147.37,2.5106]
[1718319861704,0.17,147.45,147.38,2.5104]
[1718319862204,0.17,147.45,147.37,2.5105]
[1718319862581,0.17,147.45,147.38,2.5104]
[1718319862997,0.17,147.45,147.37,2.5105]
[1718319863385,0.17,147.45,147.36,2.5107]
[1718319863587,16.202,147.44,147.36,2.5107]
[1718319864305,16.202,147.44,147.37,2.5106]
[1718319868296,0.17,147.41,147.33,3.3500806]
[1718319869207,0.17,147.41,147.33,0.8388806]
[1718319869416,0.34,147.41,147.33,0.8388806]
[1718319869711,0.34,147.41,147.34,2.5111]
[1718319870408,0.34,147.41,147.33,3.3500806]
[1718319870651,0.34,147.41,147.33,0.8388806]
[1718319870794,16.3653,147.4,147.33,0.8388806]
[1718319870998,51.3849,147.39,147.33,0.8388806]
[1718319871293,0.17,147.36,147.33,0.8388806]
[1718319871515,65.34,147.36,147.33,0.8388806]
[1718319871688,0.17,147.35,147.33,0.8388806]
[1718319872110,0.17,147.34,147.33,0.8388806]
[1718319873795,0.17,147.37,147.33,0.8388806]
[1718319874111,65.51,147.37,147.33,0.8388806]
[1718319874311,100.17,147.36,147.33,0.8388806]
[1718319874511,45.17,147.35,147.33,0.8388806]
[1718319874710,45.34,147.35,147.33,0.8388806]
[1718319874893,22.5817,147.34,147.33,0.8388806]
[1718319875091,167.5817,147.34,147.33,0.8388806]
[1718319875290,0.17,147.33,147.25,2.5126]
[1718319875728,0.34,147.33,147.26,2.5125]
[1718319875888,22.2417,147.34,147.2,43.5]
[1718319876093,22.2417,147.34,147.27,2.5123]
[1718319876296,22.2417,147.34,147.25,5.0253]
[1718319876534,22.2417,147.34,147.26,20.0]
[1718319877187,22.2417,147.34,147.28,2.5121]
[1718319877405,15.8075,147.34,147.26,20.0]
[1718319877615,15.8075,147.34,147.29,2.5119]
[1718319877995,15.8075,147.34,147.3,2.5118]
[1718319878197,15.8075,147.34,147.29,2.5119]
[1718319879726,15.8075,147.34,147.26,23.16]
[1718319880018,15.8075,147.34,147.25,5.0253]
[1718319880209,15.8075,147.34,147.27,2.5123]
[1718319881518,15.8075,147.34,147.26,5.025]
[1718319881823,15.8075,147.34,147.29,2.5119]
[1718319882021,15.8075,147.34,147.25,20.0]
[1718319882209,15.8075,147.34,147.26,23.16]
[1718319882517,6.3098,147.36,147.32,2.5113]
[1718319883302,6.3098,147.36,147.33,2.5112]
[1718319883706,16.0949,147.37,147.31,5.0232]
[1718319883903,16.0949,147.37,147.35,2.511]
[1718319884198,6.0003,147.4,147.35,2.511]
[1718319884615,6.0003,147.4,147.34,2.5111]
[1718319885126,6.0003,147.4,147.32,25.0229]
[1718319885310,6.0003,147.4,147.35,2.511]
[1718319885651,6.0003,147.4,147.36,2.5107]
[1718319886413,6.0003,147.4,147.35,2.5109]
[1718319886630,6.0003,147.4,147.34,2.511]
[1718319888818,0.17,147.39,147.32,2.5114]
[1718319889024,0.34,147.39,147.32,2.5114]
[1718319889825,0.34,147.39,147.33,2.5113]
[1718319891606,6.0003,147.4,147.31,20.0]
[1718319891810,6.0003,147.4,147.35,2.5109]
[1718319892423,6.0003,147.4,147.33,5.0225]
[1718319892747,6.0003,147.4,147.36,2.5107]
[1718319892916,6.0003,147.4,147.39,2.5103]
[1718319893190,6.0003,147.4,147.34,20.0]
[1718319893431,6.0003,147.4,147.22,100.0]
[1718319893432,6.0003,147.4,147.28,23.16]
[1718319893613,0.17,147.39,147.29,20.0]
[1718319893807,0.34,147.39,147.33,2.5113]
[1718319894002,0.34,147.39,147.32,2.5114]
[1718319894808,0.34,147.39,147.33,2.5113]
[1718319896333,0.34,147.39,147.32,2.5114]
[1718319897326,0.34,147.39,147.31,22.5116]
[1718319897530,0.34,147.39,147.31,2.5116]
[1718319898335,16.5207,147.38,147.29,20.0]
[1718319898637,16.5207,147.38,147.3,2.5117]
[1718319899335,16.5207,147.38,147.31,2.5117]
[1718319899829,16.5207,147.38,147.29,20.0]
[1718319900533,16.5207,147.38,147.33,2.5112]
[1718319900733,16.5207,147.38,147.29,25.0239]
[1718319900934,24.2607,147.38,147.33,7.74]
[1718319901328,24.2607,147.38,147.28,30.96]
[1718319901831,24.2607,147.38,147.33,7.74]
[1718319902151,16.5207,147.38,147.3,5.0235]
[1718319902449,16.5207,147.38,147.35,7.74]
[1718319903037,16.5207,147.38,147.28,51.3]
[1718319903249,6.0003,147.4,147.37,7.74]
[1718319903413,6.0003,147.4,147.36,7.74]
[1718319904824,6.0003,147.4,147.37,7.74]
[1718319905736,6.0003,147.4,147.38,7.74]
[1718319907046,6.0003,147.4,147.39,7.74]
[1718319908127,6.0003,147.4,147.38,7.74]
[1718319908329,6.0003,147.4,147.35,2.5109]
[1718319908829,6.0003,147.4,147.38,7.74]
[1718319911046,6.0003,147.4,147.35,2.5109]
[1718319911349,6.0003,147.4,147.36,7.74]
[1718319912354,6.0003,147.4,147.33,2.5113]
[1718319912566,6.0003,147.4,147.35,7.74]
[1718319912927,13.7403,147.4,147.35,7.74]
[1718319913851,13.7403,147.4,147.34,2.5111]
[1718319914033,6.0003,147.4,147.35,7.74]
[1718319914431,6.0003,147.4,147.34,2.5111]
[1718319914643,0.17,147.39,147.35,7.74]
[1718319915245,7.91,147.39,147.28,30.96]
[1718319915446,7.91,147.39,147.34,7.74]
[1718319916622,15.4484,147.38,147.28,5.0243]
[1718319916832,0.17,147.37,147.3,2.5117]
[1718319917134,7.74,147.36,147.3,2.5118]
[1718319917340,7.74,147.36,147.31,7.74]
[1718319917551,8.08,147.37,147.32,7.74]
[1718319918057,0.34,147.37,147.32,7.74]
[1718319918746,8.08,147.37,147.32,7.74]
[1718319919641,8.08,147.37,147.3,2.5117]
[1718319921124,0.34,147.37,147.3,2.5117]
[1718319921541,8.08,147.37,147.3,2.5117]
[1718319921956,0.34,147.37,147.3,2.5117]
[1718319922154,0.34,147.37,147.31,2.5117]
[1718319922357,0.34,147.37,147.3,2.5118]
[1718319922662,8.08,147.37,147.32,7.74]
[1718319923362,15.4484,147.38,147.32,2.5114]
[1718319924344,15.4484,147.38,147.35,7.74]
[1718319924746,15.4484,147.38,147.31,2.5116]
[1718319925052,15.4484,147.38,147.34,7.74]
[1718319925943,15.4484,147.38,147.29,5.024]
[1718319926139,15.4484,147.38,147.35,7.74]
[1718319926343,6.0003,147.4,147.37,7.74]
[1718319926540,6.0003,147.4,147.38,7.74]
[1718319926934,6.0003,147.4,147.37,7.74]
[1718319929267,6.0003,147.4,147.34,2.5111]
[1718319929466,6.0003,147.4,147.32,2.5114]
[1718319929467,13.7403,147.4,147.32,2.5114]
[1718319929865,13.7403,147.4,147.34,7.74]
[1718319930174,13.7403,147.4,147.35,7.74]
[1718319930464,6.0003,147.4,147.35,7.74]
[1718319930651,6.0003,147.4,147.28,55.77221791]
[1718319930652,6.0003,147.4,147.37,7.74]
[1718319930852,6.0003,147.4,147.38,7.74]
[1718319932368,16.0484,147.42,147.38,7.74]
[1718319932560,16.0484,147.42,147.39,7.74]
[1718319932759,16.0484,147.42,147.35,12.7617]
[1718319933071,6.2194,147.44,147.35,12.7617]
[1718319933072,6.2194,147.44,147.41,7.74]
[1718319933238,15.7034,147.46,147.42,7.74]
[1718319933655,15.7034,147.46,147.43,7.74]
[1718319934066,15.7034,147.46,147.44,7.74]
[1718319934437,6.2973,147.48,147.44,7.74]
[1718319935077,6.2973,147.48,147.45,7.74]
[1718319937577,15.4212,147.5,147.46,7.74]
[1718319937879,15.4212,147.5,147.45,7.74]
[1718319939358,15.4212,147.5,147.46,7.74]
[1718319939552,15.4212,147.5,147.44,2.5094]
[1718319939752,15.4212,147.5,147.45,7.74]
[1718319940073,15.4212,147.5,147.46,7.74]
[1718319940751,15.4212,147.5,147.43,2.5095]
[1718319940950,15.4212,147.5,147.45,7.74]
[1718319941554,23.1612,147.5,147.45,7.74]
[1718319942290,23.1612,147.5,147.44,7.74]
[1718319943083,7.74,147.49,147.44,7.74]
[1718319943279,7.74,147.49,147.41,2.5099]
[1718319943482,7.74,147.49,147.35,20.3573]
[1718319943483,0.17,147.46,147.35,20.3573]
[1718319943680,7.91,147.45,147.39,7.74]
[1718319943864,7.74,147.44,147.39,7.74]
[1718319944489,7.91,147.45,147.39,7.74]